[Event "*** Titled Tuesday 3|2 Blitz (Early)"]
[Site "Chess.com"]
[Date "2016.11.01"]
[Round "5"]
[White "uzbektiger95"]
[Black "VMikhalevski"]
[Result "1/2-1/2"]
[WhiteElo "2619"]
[BlackElo "2515"]
[TimeControl "180+2"]
[EndTime "12:08:56 PDT"]
[Termination "Game drawn - insufficient material"]

1. c4 {[%clk 0:03:02]} 1... e5 {[%clk 0:02:59]} 2. Nc3 {[%clk 0:03:03.2]} 2...
Bb4 {[%clk 0:02:59.2]} 3. Nd5 {[%clk 0:03:02.2]} 3... Bc5 {[%clk 0:03:00.1]} 4.
e3 {[%clk 0:03:02.7]} 4... c6 {[%clk 0:03:00.7]} 5. Nc3 {[%clk 0:03:00.6]} 5...
Qe7 {[%clk 0:02:59.2]} 6. g3 {[%clk 0:02:55.7]} 6... Nf6 {[%clk 0:02:57.2]} 7.
Bg2 {[%clk 0:02:57]} 7... O-O {[%clk 0:02:53.9]} 8. Nge2 {[%clk 0:02:58.2]} 8...
d5 {[%clk 0:02:50.9]} 9. cxd5 {[%clk 0:02:56.5]} 9... cxd5 {[%clk 0:02:51.8]}
10. d4 {[%clk 0:02:53]} 10... exd4 {[%clk 0:02:51.4]} 11. exd4 {[%clk
0:02:54.2]} 11... Bb4 {[%clk 0:02:40.6]} 12. O-O {[%clk 0:02:55]} 12... Bg4
{[%clk 0:02:41.1]} 13. Qd3 {[%clk 0:02:35.7]} 13... Bxe2 {[%clk 0:02:15.8]} 14.
Nxe2 {[%clk 0:02:36.4]} 14... h6 {[%clk 0:02:15.7]} 15. a3 {[%clk 0:02:31]}
15... Ba5 {[%clk 0:02:14.7]} 16. Nf4 {[%clk 0:02:23.1]} 16... Rd8 {[%clk
0:02:12.2]} 17. Be3 {[%clk 0:01:56.2]} 17... Nc6 {[%clk 0:02:12.5]} 18. b4
{[%clk 0:01:53.2]} 18... Bb6 {[%clk 0:02:11.6]} 19. Rfe1 {[%clk 0:01:53.7]}
19... Qd7 {[%clk 0:02:03.6]} 20. Rac1 {[%clk 0:01:51.5]} 20... Re8 {[%clk
0:02:02]} 21. Red1 {[%clk 0:01:38.8]} 21... Qd6 {[%clk 0:01:57.8]} 22. Qf5
{[%clk 0:01:32]} 22... Rad8 {[%clk 0:01:55.8]} 23. h4 {[%clk 0:01:24.9]} 23...
Qd7 {[%clk 0:01:54.4]} 24. Qb1 {[%clk 0:01:12.7]} 24... Qd6 {[%clk 0:01:53.1]}
25. Qf5 {[%clk 0:00:51.9]} 25... Qd7 {[%clk 0:01:53.1]} 26. Qxd7 {[%clk
0:00:50.7]} 26... Rxd7 {[%clk 0:01:53.4]} 27. Bf3 {[%clk 0:00:47.2]} 27... Ne7
{[%clk 0:01:31.5]} 28. g4 {[%clk 0:00:37.1]} 28... Nc6 {[%clk 0:01:27.4]} 29.
Kg2 {[%clk 0:00:36.9]} 29... Kf8 {[%clk 0:01:13.6]} 30. Be2 {[%clk 0:00:34.3]}
30... Rd6 {[%clk 0:01:02.1]} 31. Kf3 {[%clk 0:00:24.2]} 31... Ne4 {[%clk
0:00:55.3]} 32. Bb5 {[%clk 0:00:23.5]} 32... Rf6 {[%clk 0:00:52.1]} 33. Kg2
{[%clk 0:00:21.7]} 33... Rd8 {[%clk 0:00:41.9]} 34. Ne2 {[%clk 0:00:17]} 34...
Rg6 {[%clk 0:00:38.9]} 35. f3 {[%clk 0:00:17.7]} 35... Nd6 {[%clk 0:00:38.1]}
36. Nf4 {[%clk 0:00:19.1]} 36... Nxb5 {[%clk 0:00:37.8]} 37. Nxg6+ {[%clk
0:00:19]} 37... fxg6 {[%clk 0:00:38.9]} 38. a4 {[%clk 0:00:20.4]} 38... Bxd4
{[%clk 0:00:21.8]} 39. axb5 {[%clk 0:00:17]} 39... Bxe3 {[%clk 0:00:22.8]} 40.
Rc3 {[%clk 0:00:16.9]} 40... Bd4 {[%clk 0:00:13.7]} 41. Rcd3 {[%clk 0:00:17.8]}
41... Bf6 {[%clk 0:00:13.9]} 42. bxc6 {[%clk 0:00:18.6]} 42... bxc6 {[%clk
0:00:15]} 43. Ra3 {[%clk 0:00:17.9]} 43... Rd7 {[%clk 0:00:15]} 44. Ra6 {[%clk
0:00:18.6]} 44... Bxh4 {[%clk 0:00:13.6]} 45. Rxc6 {[%clk 0:00:19.3]} 45... Bf6
{[%clk 0:00:15.2]} 46. b5 {[%clk 0:00:20]} 46... d4 {[%clk 0:00:15.9]} 47. Rd3
{[%clk 0:00:20.2]} 47... Rd5 {[%clk 0:00:13.4]} 48. Rc8+ {[%clk 0:00:18.1]}
48... Ke7 {[%clk 0:00:13.4]} 49. Rb8 {[%clk 0:00:18.2]} 49... Kd6 {[%clk
0:00:13.7]} 50. Rb7 {[%clk 0:00:19.5]} 50... Kc5 {[%clk 0:00:13.6]} 51. Rxa7
{[%clk 0:00:17.5]} 51... Kc4 {[%clk 0:00:13.8]} 52. Rd1 {[%clk 0:00:17.5]} 52...
Rxb5 {[%clk 0:00:14.7]} 53. Rc7+ {[%clk 0:00:14]} 53... Kd5 {[%clk 0:00:14.5]}
54. Rd7+ {[%clk 0:00:12]} 54... Ke6 {[%clk 0:00:10.8]} 55. R7xd4 {[%clk
0:00:08.6]} 55... Bxd4 {[%clk 0:00:08.3]} 56. Rxd4 {[%clk 0:00:10.5]} 56... Rb2+
{[%clk 0:00:08.6]} 57. Kg3 {[%clk 0:00:11.8]} 57... Ke5 {[%clk 0:00:09.7]} 58.
Re4+ {[%clk 0:00:13.1]} 58... Kf6 {[%clk 0:00:10.8]} 59. Rf4+ {[%clk 0:00:14.6]}
59... Ke6 {[%clk 0:00:11.4]} 60. Re4+ {[%clk 0:00:15.8]} 60... Kf6 {[%clk
0:00:12.5]} 61. Rf4+ {[%clk 0:00:17.3]} 61... Ke7 {[%clk 0:00:13.7]} 62. Re4+
{[%clk 0:00:18.5]} 62... Kf7 {[%clk 0:00:14.9]} 63. Rf4+ {[%clk 0:00:19.5]}
63... Kg8 {[%clk 0:00:16]} 64. Ra4 {[%clk 0:00:20.4]} 64... g5 {[%clk
0:00:17.2]} 65. Ra7 {[%clk 0:00:20.1]} 65... Rb6 {[%clk 0:00:17.1]} 66. Ra5
{[%clk 0:00:20.5]} 66... Kh7 {[%clk 0:00:18.6]} 67. Rc5 {[%clk 0:00:21.6]} 67...
Kg6 {[%clk 0:00:20.2]} 68. Rd5 {[%clk 0:00:22.8]} 68... Kf6 {[%clk 0:00:21]} 69.
Rf5+ {[%clk 0:00:23.7]} 69... Ke6 {[%clk 0:00:21.7]} 70. Ra5 {[%clk 0:00:25.6]}
70... Rd6 {[%clk 0:00:22.5]} 71. Rb5 {[%clk 0:00:26.5]} 71... Kf6 {[%clk
0:00:23.3]} 72. Rf5+ {[%clk 0:00:27.5]} 72... Ke6 {[%clk 0:00:24.3]} 73. Ra5
{[%clk 0:00:28.7]} 73... g6 {[%clk 0:00:25.4]} 74. Rb5 {[%clk 0:00:27.7]} 74...
Kf6 {[%clk 0:00:26.3]} 75. Rb3 {[%clk 0:00:17.1]} 75... h5 {[%clk 0:00:26.4]}
76. gxh5 {[%clk 0:00:10.1]} 76... gxh5 {[%clk 0:00:26.8]} 77. f4 {[%clk
0:00:10.2]} 77... g4 {[%clk 0:00:25.4]} 78. Kh4 {[%clk 0:00:11.5]} 78... Rd5
{[%clk 0:00:23.7]} 79. Ra3 {[%clk 0:00:08.2]} 79... Rf5 {[%clk 0:00:20.9]} 80.
Ra6+ {[%clk 0:00:07.5]} 80... Ke7 {[%clk 0:00:21.8]} 81. Rb6 {[%clk 0:00:04.5]}
81... Kf7 {[%clk 0:00:20.6]} 82. Ra6 {[%clk 0:00:05.7]} 82... Kg7 {[%clk
0:00:16.5]} 83. Rb6 {[%clk 0:00:06.4]} 83... Kf7 {[%clk 0:00:16.4]} 84. Ra6
{[%clk 0:00:07.6]} 84... Rxf4 {[%clk 0:00:09]} 85. Kxh5 {[%clk 0:00:08.2]} 85...
g3 {[%clk 0:00:09.8]} 86. Ra3 {[%clk 0:00:05.5]} 86... g2 {[%clk 0:00:09.4]} 87.
Rg3 {[%clk 0:00:07.1]} 87... Rf2 {[%clk 0:00:09.4]} 88. Kg4 {[%clk 0:00:07.4]}
88... Rf6 {[%clk 0:00:08.8]} 89. Rxg2 {[%clk 0:00:07.7]} 89... Rg6+ {[%clk
0:00:10]} 90. Kh3 {[%clk 0:00:09]} 90... Rxg2 {[%clk 0:00:11.3]} 91. Kxg2 {[%clk
0:00:09.4]} 1/2-1/2

[Event "*** Titled Tuesday 3|2 Blitz (Early)"]
[Site "Chess.com"]
[Date "2016.11.01"]
[Round "6"]
[White "LuckyTiger"]
[Black "Keaton87"]
[Result "0-1"]
[WhiteElo "2561"]
[BlackElo "2452"]
[TimeControl "180+2"]
[EndTime "12:13:21 PDT"]
[Termination "Keaton87 won by resignation"]

1. e4 {[%clk 0:03:02]} 1... c5 {[%clk 0:02:56.9]} 2. c3 {[%clk 0:03:03.1]} 2...
Nf6 {[%clk 0:02:57.3]} 3. e5 {[%clk 0:03:03.4]} 3... Nd5 {[%clk 0:02:58.2]} 4.
Nf3 {[%clk 0:03:05]} 4... Nc6 {[%clk 0:02:58.8]} 5. Bc4 {[%clk 0:03:05.3]} 5...
Nb6 {[%clk 0:02:59.9]} 6. Bb3 {[%clk 0:03:06.6]} 6... c4 {[%clk 0:02:59.1]} 7.
Bc2 {[%clk 0:03:07.9]} 7... d5 {[%clk 0:03:00.4]} 8. exd6 {[%clk 0:03:08.8]}
8... Bg4 {[%clk 0:03:01.4]} 9. O-O {[%clk 0:03:07.9]} 9... e6 {[%clk 0:03:00.1]}
10. Qe2 {[%clk 0:03:03.3]} 10... Bxd6 {[%clk 0:02:57.3]} 11. b3 {[%clk
0:03:01.6]} 11... Ne5 {[%clk 0:02:56.9]} 12. bxc4 {[%clk 0:02:49.1]} 12... Nxf3+
{[%clk 0:02:57.6]} 13. gxf3 {[%clk 0:02:49.9]} 13... Bh3 {[%clk 0:02:59.2]} 14.
d4 {[%clk 0:02:23.9]} 14... Qh4 {[%clk 0:02:58.6]} 15. Qe4 {[%clk 0:02:18]}
15... Qh5 {[%clk 0:02:43.7]} 16. Re1 {[%clk 0:01:45.9]} 16... Bxh2+ {[%clk
0:02:37.8]} 0-1

[Event "*** Titled Tuesday 3|2 Blitz (Early)"]
[Site "Chess.com"]
[Date "2016.11.01"]
[Round "6"]
[White "Fandorine"]
[Black "IMJonathanCarlstedt"]
[Result "1-0"]
[WhiteElo "2639"]
[BlackElo "2458"]
[TimeControl "180+2"]
[EndTime "12:15:13 PDT"]
[Termination "Fandorine won by resignation"]

1. Nf3 {[%clk 0:03:02]} 1... d5 {[%clk 0:02:59.5]} 2. g3 {[%clk 0:03:02.1]} 2...
c5 {[%clk 0:02:58.7]} 3. Bg2 {[%clk 0:02:59]} 3... e6 {[%clk 0:02:59.8]} 4. O-O
{[%clk 0:02:59.8]} 4... Nf6 {[%clk 0:03:00.8]} 5. d3 {[%clk 0:02:56.6]} 5... Nc6
{[%clk 0:03:02]} 6. Nbd2 {[%clk 0:02:56.7]} 6... Be7 {[%clk 0:03:03.4]} 7. e4
{[%clk 0:02:57.9]} 7... O-O {[%clk 0:03:04.6]} 8. Re1 {[%clk 0:02:55]} 8... b5
{[%clk 0:03:05.4]} 9. a4 {[%clk 0:02:49.2]} 9... b4 {[%clk 0:03:06]} 10. exd5
{[%clk 0:02:50.2]} 10... exd5 {[%clk 0:03:06.5]} 11. d4 {[%clk 0:02:51.6]} 11...
c4 {[%clk 0:03:06.4]} 12. Ne5 {[%clk 0:02:45.7]} 12... Na5 {[%clk 0:02:53.1]}
13. Ndxc4 {[%clk 0:02:37.7]} 13... Nxc4 {[%clk 0:02:52.7]} 14. Nc6 {[%clk
0:02:29.2]} 14... Bg4 {[%clk 0:02:17.4]} 15. f3 {[%clk 0:02:27]} 15... Be6
{[%clk 0:02:17.3]} 16. Nxd8 {[%clk 0:02:27.6]} 16... Bxd8 {[%clk 0:02:18.3]} 17.
b3 {[%clk 0:02:26.7]} 17... Nd6 {[%clk 0:02:18.9]} 18. a5 {[%clk 0:02:17.2]}
18... Nb5 {[%clk 0:02:17.7]} 19. Bd2 {[%clk 0:02:16.6]} 19... Nc3 {[%clk
0:02:16.6]} 20. Bxc3 {[%clk 0:02:15.9]} 20... bxc3 {[%clk 0:02:17.8]} 21. Re3
{[%clk 0:02:13.2]} 21... Rc8 {[%clk 0:02:11.7]} 22. Qe1 {[%clk 0:02:14]} 22...
Be7 {[%clk 0:02:13]} 23. Rxc3 {[%clk 0:02:13]} 23... Rb8 {[%clk 0:02:14.1]} 24.
Rc7 {[%clk 0:02:06.6]} 24... Bb4 {[%clk 0:02:14]} 25. c3 {[%clk 0:01:58.2]}
25... Bd6 {[%clk 0:02:14.3]} 26. Rc6 {[%clk 0:01:59.4]} 26... Rfd8 {[%clk
0:02:15.2]} 27. b4 {[%clk 0:01:54.2]} 27... Bf8 {[%clk 0:02:15.9]} 28. Rc7
{[%clk 0:01:45.8]} 28... a6 {[%clk 0:02:16.1]} 29. Bf1 {[%clk 0:01:47]} 29... g5
{[%clk 0:02:13.2]} 30. Bxa6 {[%clk 0:01:46.3]} 30... g4 {[%clk 0:02:14.3]} 31.
Be2 {[%clk 0:01:42]} 31... gxf3 {[%clk 0:02:12.1]} 32. Bxf3 {[%clk 0:01:42.5]}
32... Ne4 {[%clk 0:02:13.3]} 33. Bxe4 {[%clk 0:01:40.9]} 33... dxe4 {[%clk
0:02:14.4]} 34. Qxe4 {[%clk 0:01:42.6]} 34... Bd5 {[%clk 0:02:15.4]} 35. Qg4+
{[%clk 0:01:42.9]} 35... Kh8 {[%clk 0:02:15.7]} 36. Rf1 {[%clk 0:01:41.6]} 36...
Bd6 {[%clk 0:02:08.2]} 37. Rfxf7 {[%clk 0:01:36.3]} 1-0

[Event "*** Titled Tuesday 3|2 Blitz (Early)"]
[Site "Chess.com"]
[Date "2016.11.01"]
[Round "6"]
[White "Smirnov_Pavel"]
[Black "Alexander_Moskalenko"]
[Result "1-0"]
[WhiteElo "2546"]
[BlackElo "2684"]
[TimeControl "180+2"]
[EndTime "12:15:13 PDT"]
[Termination "Smirnov_Pavel won by resignation"]

1. d4 {[%clk 0:02:57.4]} 1... d5 {[%clk 0:03:00.3]} 2. c4 {[%clk 0:02:58.1]}
2... e6 {[%clk 0:03:01.1]} 3. Nf3 {[%clk 0:02:59]} 3... a6 {[%clk 0:03:01.9]} 4.
cxd5 {[%clk 0:02:58.4]} 4... exd5 {[%clk 0:03:02.7]} 5. Nc3 {[%clk 0:02:59.3]}
5... c6 {[%clk 0:03:03.9]} 6. Bf4 {[%clk 0:03:00.1]} 6... Bd6 {[%clk 0:03:04.3]}
7. Bxd6 {[%clk 0:03:01.1]} 7... Qxd6 {[%clk 0:03:04.3]} 8. e4 {[%clk 0:03:02.7]}
8... dxe4 {[%clk 0:03:03.7]} 9. Nxe4 {[%clk 0:03:03.3]} 9... Qb4+ {[%clk
0:03:04.3]} 10. Qd2 {[%clk 0:03:04.4]} 10... Qxd2+ {[%clk 0:03:04.7]} 11. Kxd2
{[%clk 0:03:04.9]} 11... Ke7 {[%clk 0:03:00.5]} 12. Bc4 {[%clk 0:03:01.2]} 12...
Nf6 {[%clk 0:02:58.3]} 13. Rhe1 {[%clk 0:02:56.3]} 13... h6 {[%clk 0:00:34.6]}
14. Neg5+ {[%clk 0:02:52.3]} 14... Be6 {[%clk 0:00:29.1]} 15. Nxf7 {[%clk
0:02:37.3]} 15... Kxf7 {[%clk 0:00:22.2]} 16. Rxe6 {[%clk 0:02:38]} 16... Nbd7
{[%clk 0:00:14]} 17. Rae1 {[%clk 0:02:33.2]} 17... Rhd8 {[%clk 0:00:09.3]} 18.
Re7+ {[%clk 0:02:23.8]} 18... Kg6 {[%clk 0:00:10.5]} 19. Bd3+ {[%clk 0:02:22.8]}
19... Kh5 {[%clk 0:00:10.9]} 20. Rxg7 {[%clk 0:02:22.2]} 20... Rg8 {[%clk
0:00:10.9]} 21. g4+ {[%clk 0:02:22.2]} 1-0

[Event "*** Titled Tuesday 3|2 Blitz (Early)"]
[Site "Chess.com"]
[Date "2016.11.01"]
[Round "6"]
[White "NTBT_DHS"]
[Black "darsen_sanzhaev"]
[Result "1-0"]
[WhiteElo "2495"]
[BlackElo "2315"]
[TimeControl "180+2"]
[EndTime "12:16:23 PDT"]
[Termination "NTBT_DHS won by resignation"]

1. d4 {[%clk 0:03:01.9]} 1... d5 {[%clk 0:02:59.6]} 2. c4 {[%clk 0:03:02.9]}
2... c5 {[%clk 0:03:01.1]} 3. cxd5 {[%clk 0:03:01.6]} 3... Qxd5 {[%clk
0:03:01.8]} 4. Nf3 {[%clk 0:02:59.4]} 4... cxd4 {[%clk 0:03:02.6]} 5. Nc3 {[%clk
0:02:59.5]} 5... Qa5 {[%clk 0:03:04.2]} 6. Qxd4 {[%clk 0:02:58.8]} 6... Nc6
{[%clk 0:02:48.4]} 7. Qf4 {[%clk 0:02:52.3]} 7... e5 {[%clk 0:02:40.8]} 8. Qg3
{[%clk 0:02:43.5]} 8... Nf6 {[%clk 0:02:16.5]} 9. Nd2 {[%clk 0:02:35.1]} 9...
Nb4 {[%clk 0:02:00]} 10. Kd1 {[%clk 0:02:14]} 10... Be6 {[%clk 0:01:58.8]} 11.
e3 {[%clk 0:01:56.2]} 11... O-O-O {[%clk 0:01:47.3]} 12. Bb5 {[%clk 0:01:44.5]}
12... Be7 {[%clk 0:01:26.1]} 13. Qxe5 {[%clk 0:01:41.1]} 13... Nd3 {[%clk
0:01:18.4]} 14. Bd7+ {[%clk 0:01:39.3]} 14... Rxd7 {[%clk 0:01:15.4]} 15. Qxa5
{[%clk 0:01:40.1]} 15... Nxf2+ {[%clk 0:01:17]} 16. Ke2 {[%clk 0:01:40.8]} 16...
Nxh1 {[%clk 0:01:18.5]} 17. Nb5 {[%clk 0:01:35.9]} 17... a6 {[%clk 0:01:11.2]}
18. Nd4 {[%clk 0:01:36.6]} 18... Rhd8 {[%clk 0:01:02.2]} 19. Nxe6 {[%clk
0:01:35.1]} 19... fxe6 {[%clk 0:01:04.1]} 20. Nc4 {[%clk 0:01:35.7]} 20... Rd1
{[%clk 0:01:00.2]} 21. Qe5 {[%clk 0:01:36]} 21... b5 {[%clk 0:00:39]} 22. Qxe6+
{[%clk 0:01:35.5]} 22... Kb8 {[%clk 0:00:26.3]} 23. Qb6+ {[%clk 0:01:32.3]}
23... Kc8 {[%clk 0:00:26.7]} 24. Qxa6+ {[%clk 0:01:30]} 24... Kc7 {[%clk
0:00:26.1]} 25. Qb6+ {[%clk 0:01:31.1]} 25... Kc8 {[%clk 0:00:27.1]} 26. Qc6+
{[%clk 0:01:31.3]} 26... Kb8 {[%clk 0:00:28.4]} 27. Qxb5+ {[%clk 0:01:32.8]}
27... Kc7 {[%clk 0:00:28]} 28. Qb6+ {[%clk 0:01:33.5]} 28... Kc8 {[%clk
0:00:28.8]} 29. Qe6+ {[%clk 0:01:29.9]} 1-0

[Event "*** Titled Tuesday 3|2 Blitz (Early)"]
[Site "Chess.com"]
[Date "2016.11.01"]
[Round "6"]
[White "TheSovietChess"]
[Black "Jungle_Jaguar"]
[Result "1-0"]
[WhiteElo "2499"]
[BlackElo "2321"]
[TimeControl "180+2"]
[EndTime "12:17:04 PDT"]
[Termination "TheSovietChess won by resignation"]

1. Nf3 {[%clk 0:03:02]} 1... d5 {[%clk 0:02:59.3]} 2. g3 {[%clk 0:03:03.9]} 2...
Nf6 {[%clk 0:02:59.2]} 3. Bg2 {[%clk 0:03:05.3]} 3... c5 {[%clk 0:03:00.4]} 4.
O-O {[%clk 0:03:06.9]} 4... Nc6 {[%clk 0:03:01.4]} 5. c3 {[%clk 0:03:03.5]} 5...
e5 {[%clk 0:02:54.6]} 6. d4 {[%clk 0:03:03.9]} 6... cxd4 {[%clk 0:02:52.8]} 7.
cxd4 {[%clk 0:03:04.9]} 7... e4 {[%clk 0:02:54.3]} 8. Ne5 {[%clk 0:03:05.6]}
8... Bd6 {[%clk 0:02:50.9]} 9. Nxc6 {[%clk 0:03:05.3]} 9... bxc6 {[%clk
0:02:51.5]} 10. Bg5 {[%clk 0:03:06.8]} 10... h6 {[%clk 0:02:49.7]} 11. Qc1
{[%clk 0:03:05.8]} 11... Bd7 {[%clk 0:02:20.8]} 12. Bxf6 {[%clk 0:03:04.5]}
12... Qxf6 {[%clk 0:02:22.7]} 13. e3 {[%clk 0:03:03.9]} 13... O-O {[%clk
0:02:22.4]} 14. Nc3 {[%clk 0:03:05.2]} 14... Rfb8 {[%clk 0:02:19.5]} 15. Qd2
{[%clk 0:03:05.8]} 15... Qd8 {[%clk 0:02:15.9]} 16. f3 {[%clk 0:03:02.8]} 16...
exf3 {[%clk 0:02:13.2]} 17. Rxf3 {[%clk 0:03:03.3]} 17... Qa5 {[%clk 0:02:11]}
18. Raf1 {[%clk 0:02:57.8]} 18... Be6 {[%clk 0:02:05.3]} 19. Qc2 {[%clk
0:02:58.2]} 19... Rb7 {[%clk 0:01:27.7]} 20. Na4 {[%clk 0:02:57.4]} 20... Rc8
{[%clk 0:01:10.6]} 21. a3 {[%clk 0:02:57.2]} 21... c5 {[%clk 0:01:08.4]} 22.
dxc5 {[%clk 0:02:57.7]} 22... Bxc5 {[%clk 0:01:06.4]} 23. Nxc5 {[%clk
0:02:57.6]} 23... Rxc5 {[%clk 0:00:58.5]} 24. Qb1 {[%clk 0:02:58.2]} 24... Rcb5
{[%clk 0:00:53.3]} 25. R3f2 {[%clk 0:02:58.2]} 25... Qxa3 {[%clk 0:00:51]} 26.
bxa3 {[%clk 0:02:58.5]} 26... Rxb1 {[%clk 0:00:51.5]} 27. Rxb1 {[%clk
0:03:00.4]} 27... Rxb1+ {[%clk 0:00:52.8]} 28. Rf1 {[%clk 0:03:00.7]} 28... Rb3
{[%clk 0:00:39.1]} 29. Rd1 {[%clk 0:03:00.2]} 29... Rxa3 {[%clk 0:00:27.6]} 30.
Bxd5 {[%clk 0:03:00.3]} 30... Bxd5 {[%clk 0:00:28.9]} 31. Rxd5 {[%clk
0:03:00.9]} 31... Rxe3 {[%clk 0:00:30.8]} 32. Ra5 {[%clk 0:03:01.2]} 32... Re7
{[%clk 0:00:31.2]} 33. Kg2 {[%clk 0:03:01.6]} 33... Kf8 {[%clk 0:00:31.7]} 34.
Kf3 {[%clk 0:03:02.3]} 34... Ke8 {[%clk 0:00:32.8]} 35. h4 {[%clk 0:03:02.7]}
35... Kd8 {[%clk 0:00:34]} 36. g4 {[%clk 0:03:03.6]} 36... Kc8 {[%clk
0:00:35.4]} 37. Kf4 {[%clk 0:03:04.2]} 37... Kb7 {[%clk 0:00:36.4]} 38. Ra1
{[%clk 0:03:04]} 38... Re6 {[%clk 0:00:34]} 39. g5 {[%clk 0:03:04.8]} 39...
hxg5+ {[%clk 0:00:32.6]} 40. hxg5 {[%clk 0:03:05.8]} 40... a6 {[%clk 0:00:31.4]}
41. Ra2 {[%clk 0:03:05.8]} 41... f6 {[%clk 0:00:22.8]} 42. gxf6 {[%clk
0:03:05.8]} 42... Rxf6+ {[%clk 0:00:21.7]} 43. Ke5 {[%clk 0:03:06.7]} 43... Rf3
{[%clk 0:00:20.2]} 44. Rb2+ {[%clk 0:03:06.9]} 44... Ka7 {[%clk 0:00:21.2]} 45.
Rg2 {[%clk 0:03:06.9]} 45... Rf7 {[%clk 0:00:21.6]} 46. Kd4 {[%clk 0:03:07.6]}
46... Rb7 {[%clk 0:00:23.1]} 47. Kc4 {[%clk 0:03:08.4]} 47... a5 {[%clk
0:00:24.7]} 48. Rg5 {[%clk 0:03:08.8]} 48... Ka6 {[%clk 0:00:25.6]} 49. Rg6+
{[%clk 0:03:09.6]} 49... Ka7 {[%clk 0:00:27.2]} 50. Rg5 {[%clk 0:03:10.1]} 50...
Rc7+ {[%clk 0:00:27.4]} 51. Kb5 {[%clk 0:03:10.9]} 51... Kb7 {[%clk 0:00:27.4]}
52. Rg6 {[%clk 0:03:11.4]} 52... Kc8 {[%clk 0:00:28.2]} 53. Kxa5 {[%clk
0:03:12.1]} 53... Kd7 {[%clk 0:00:29.7]} 54. Kb6 {[%clk 0:03:12.8]} 54... Rc1
{[%clk 0:00:24.9]} 55. Rxg7+ {[%clk 0:03:13.7]} 55... Ke6 {[%clk 0:00:26.5]} 56.
Rc7 {[%clk 0:03:14.3]} 56... Kd5 {[%clk 0:00:27.4]} 57. Rxc1 {[%clk 0:03:14.4]}
1-0

[Event "*** Titled Tuesday 3|2 Blitz (Early)"]
[Site "Chess.com"]
[Date "2016.11.01"]
[Round "6"]
[White "Zaven_ChessMood"]
[Black "howitzer14"]
[Result "1/2-1/2"]
[WhiteElo "2709"]
[BlackElo "2763"]
[TimeControl "180+2"]
[EndTime "12:17:07 PDT"]
[Termination "Game drawn by agreement"]

1. e4 {[%clk 0:03:02]} 1... e5 {[%clk 0:03:00.2]} 2. Nf3 {[%clk 0:03:02.7]} 2...
Nc6 {[%clk 0:03:02.1]} 3. Bb5 {[%clk 0:03:02.8]} 3... Nge7 {[%clk 0:03:02.9]} 4.
c3 {[%clk 0:03:00.8]} 4... d5 {[%clk 0:03:01.9]} 5. Nxe5 {[%clk 0:02:55.9]} 5...
dxe4 {[%clk 0:03:02.1]} 6. d4 {[%clk 0:02:52.8]} 6... exd3 {[%clk 0:02:59.4]} 7.
Nxc6 {[%clk 0:02:50.1]} 7... Nxc6 {[%clk 0:02:59.1]} 8. O-O {[%clk 0:02:43.7]}
8... Bf5 {[%clk 0:02:53.6]} 9. Qf3 {[%clk 0:02:37]} 9... Qd7 {[%clk 0:02:53.1]}
10. Re1+ {[%clk 0:02:31.2]} 10... Be7 {[%clk 0:02:54.4]} 11. Bg5 {[%clk
0:02:29.5]} 11... f6 {[%clk 0:02:51.9]} 12. Bf4 {[%clk 0:02:28]} 12... O-O
{[%clk 0:02:39.6]} 13. Nd2 {[%clk 0:02:28.3]} 13... Rfe8 {[%clk 0:02:35.8]} 14.
Bxc7 {[%clk 0:02:25.4]} 14... Bg6 {[%clk 0:02:32.2]} 15. Bg3 {[%clk 0:02:22.7]}
15... Kh8 {[%clk 0:02:28.4]} 16. Bc4 {[%clk 0:02:15.6]} 16... Bc5 {[%clk
0:02:12.9]} 17. b4 {[%clk 0:02:11.5]} 17... Bb6 {[%clk 0:02:11]} 18. Qd5 {[%clk
0:02:08.2]} 18... Qg4 {[%clk 0:02:09.2]} 19. Qf3 {[%clk 0:02:05.6]} 19... Qd7
{[%clk 0:02:09.5]} 20. Qd5 {[%clk 0:02:06.2]} 20... Qg4 {[%clk 0:02:05.4]} 21.
Qf3 {[%clk 0:02:06.7]} 21... Qg5 {[%clk 0:02:07]} 22. Bf4 {[%clk 0:02:04.4]}
22... Qf5 {[%clk 0:02:04.4]} 23. Bg3 {[%clk 0:02:02.9]} 23... Qg5 {[%clk
0:02:00.5]} 24. Bf4 {[%clk 0:02:03.5]} 24... Qf5 {[%clk 0:02:01.8]} 25. Bg3
{[%clk 0:02:04.4]} 25... Rad8 {[%clk 0:01:58.4]} 26. Qxf5 {[%clk 0:02:01.9]}
26... Bxf5 {[%clk 0:02:00.3]} 27. Rxe8+ {[%clk 0:01:52.4]} 27... Rxe8 {[%clk
0:02:02.2]} 28. Kf1 {[%clk 0:01:50]} 28... h5 {[%clk 0:01:55]} 29. Re1 {[%clk
0:01:48.4]} 29... Rc8 {[%clk 0:01:50.5]} 30. f3 {[%clk 0:01:42.7]} 30... h4
{[%clk 0:01:39.7]} 31. Bxh4 {[%clk 0:01:38.6]} 31... Ne5 {[%clk 0:01:39.9]} 32.
Bb3 {[%clk 0:01:39.2]} 32... Rxc3 {[%clk 0:01:37.8]} 33. Bf2 {[%clk 0:01:40]}
33... Bxf2 {[%clk 0:01:33.5]} 34. Kxf2 {[%clk 0:01:41]} 34... g5 {[%clk
0:01:35.4]} 35. Ke3 {[%clk 0:01:33.7]} 35... Rc7 {[%clk 0:01:33]} 36. h3 {[%clk
0:01:26.8]} 36... Kg7 {[%clk 0:01:30.7]} 37. f4 {[%clk 0:01:24.8]} 37... Nc6
{[%clk 0:01:31]} 38. fxg5 {[%clk 0:01:23]} 38... fxg5 {[%clk 0:01:29.9]} 39. Nf3
{[%clk 0:01:24]} 39... Kf6 {[%clk 0:01:27.5]} 40. a3 {[%clk 0:01:21.2]} 40... a5
{[%clk 0:01:26.2]} 41. b5 {[%clk 0:01:18.3]} 41... Ne5 {[%clk 0:01:19.3]} 42.
Nd4 {[%clk 0:01:18.1]} 42... a4 {[%clk 0:01:11]} 43. Ba2 {[%clk 0:01:15.9]}
43... Bh7 {[%clk 0:01:06.1]} 1/2-1/2